bitfinex/quotes_ETHUSD_20220118
["timestamp","ask_amount","ask_price","bid_price","bid_amount"]
[1642473843331,1.24302008,3217.9,3217.8,1.39207228]
[1642473843531,1.24302008,3217.9,3217.8,3.23480272]
[1642473843932,1.24302008,3217.9,3217.8,1.39207228]
[1642473844134,1.24302008,3217.9,3217.8,3.19414594]
[1642473844534,1.24302008,3217.9,3217.8,3.22667304]
[1642473845236,1.24302008,3217.9,3217.8,1.39207228]
[1642473846687,1.24302008,3217.9,3217.8,9.55e-05]
[1642473846887,1.24302008,3217.9,3217.8,1.75529911]
[1642473847088,1.24302008,3217.9,3217.8,9.55e-05]
[1642473847288,1.24302008,3217.9,3217.8,1.39207228]
[1642473848189,1.24302008,3217.9,3217.8,9.55e-05]
[1642473849590,1.54302008,3217.9,3217.8,9.55e-05]
[1642473850948,1.66722008,3217.9,3217.8,9.55e-05]
[1642473851544,3.86722008,3217.9,3217.8,9.55e-05]
[1642473853147,1.66722008,3217.9,3217.8,9.55e-05]
[1642473854585,1.54302008,3217.9,3217.8,9.55e-05]
[1642473857396,1.24302008,3217.9,3217.8,9.55e-05]
[1642473858635,1.54302008,3217.9,3217.8,9.55e-05]
[1642473859835,1.24302008,3217.9,3217.8,9.55e-05]
[1642473860039,1.54302008,3217.9,3217.8,9.55e-05]
[1642473860639,1.24302008,3217.9,3217.8,9.55e-05]
[1642473860840,1.54302008,3217.9,3217.8,9.55e-05]
[1642473861480,1.24302008,3217.9,3217.8,9.55e-05]
[1642473861684,1.54302008,3217.9,3217.8,9.55e-05]
[1642473862186,1.24302008,3217.9,3217.8,9.55e-05]
[1642473862388,1.54302008,3217.9,3217.8,9.55e-05]
[1642473863688,1.24302008,3217.9,3217.8,9.55e-05]
[1642473863887,1.54302008,3217.9,3217.8,9.55e-05]
[1642473867140,1.24302008,3217.9,3217.8,9.55e-05]
[1642473869587,1.24302008,3217.9,3217.8,1.39207228]
[1642473869989,1.54302008,3217.9,3217.8,1.39207228]
[1642473870391,1.54302008,3217.9,3217.8,9.55e-05]
[1642473871395,1.53563057,3217.9,3217.8,9.55e-05]
[1642473875441,1.23563057,3217.9,3217.8,9.55e-05]
[1642473875641,1.53563057,3217.9,3217.8,9.55e-05]
[1642473884001,5.08563057,3217.9,3217.8,9.55e-05]
[1642473884901,1.53563057,3217.9,3217.8,9.55e-05]
[1642473887940,3.68563057,3217.9,3217.8,9.55e-05]
[1642473890143,2.45,3217.9,3217.8,9.55e-05]
[1642473891142,3.48478568,3217.9,3217.8,9.55e-05]
[1642473903541,5.67850201,3217.9,3217.8,9.55e-05]
[1642473903740,3.60898568,3217.9,3217.8,9.55e-05]
[1642473903939,6.45898568,3217.9,3217.8,9.55e-05]
[1642473904140,7.82050188,3217.9,3217.8,9.55e-05]
[1642473906046,10.0106325,3217.9,3217.8,9.55e-05]
[1642473907398,11.04407554,3217.9,3217.8,9.55e-05]
[1642473908996,10.91987554,3217.9,3217.8,9.55e-05]
[1642473909196,9.84297656,3217.9,3217.8,9.55e-05]
[1642473909598,10.16788002,3217.9,3217.8,9.55e-05]
[1642473909799,8.394779,3217.9,3217.8,9.55e-05]
[1642473910441,6.20464838,3217.9,3217.8,9.55e-05]
[1642473910641,7.9777494,3217.9,3217.8,9.55e-05]
[1642473912446,3.80968914,3217.9,3217.8,9.55e-05]
[1642473915196,5.95594274,3217.9,3217.8,9.55e-05]
[1642473915795,3.80968914,3217.9,3217.8,9.55e-05]
[1642473915996,1.65968914,3217.9,3217.8,9.55e-05]
[1642473916596,4.05464838,3217.9,3217.8,9.55e-05]
[1642473918241,1.65968914,3217.9,3217.8,9.55e-05]
[1642473918641,1.35968914,3217.9,3217.8,9.55e-05]
[1642473919343,1.35968914,3217.9,3217.8,1.61364744]
[1642473919946,1.35968914,3217.9,3217.8,1.73784744]
[1642473920346,1.65968914,3217.9,3217.8,1.73784744]
[1642473920551,1.65968914,3217.9,3217.8,1.61364744]
[1642473923796,1.35968914,3217.9,3217.8,1.61364744]
[1642473927845,1.65968914,3217.9,3217.8,1.61364744]
[1642473929688,1.35968914,3217.9,3217.8,1.61364744]
[1642473941744,1.35968914,3217.9,3217.8,9.55e-05]
[1642473945192,1.35968914,3217.9,3217.8,0.4470955]
[1642473945494,1.35968914,3217.9,3217.8,2.31129686]
[1642473945692,1.35968914,3217.9,3217.8,0.4470955]
[1642473946092,1.35968914,3217.9,3217.8,2.17779594]
[1642473946496,1.59642116,3218.1,3217.8,7.17779594]
[1642473946698,1.59642116,3218.1,3217.9,1.0]
[1642473946894,1.59642116,3218.1,3218.0,5.13418042]
[1642473947095,2.116e-05,3218.1,3218.0,8.41159373]
[1642473947294,2.39495924,3218.3,3218.1,2.35]
[1642473947495,2.39495924,3218.3,3218.2,2.5712]
[1642473947746,2.39495924,3218.3,3218.2,1.8688767]
[1642473947944,2.39495924,3218.5,3218.2,2.8688767]
[1642473948144,2.39495924,3218.5,3218.2,1.8688767]
[1642473948344,2.40575929,3218.5,3218.3,1.0]
[1642473948551,2.40575929,3218.5,3218.4,0.5712]
[1642473949351,0.01080005,3218.5,3218.4,0.5712]
[1642473950454,0.01080005,3218.5,3218.4,2.38239426]
[1642473950657,0.01080005,3218.5,3218.4,2.25819426]
[1642473951499,0.01080005,3218.5,3218.4,2.38239426]
[1642473953304,0.01080005,3218.5,3218.4,0.447]
[1642473955948,0.01080005,3218.5,3218.4,2.29187059]
[1642473957154,0.01080005,3218.5,3218.4,2.41607059]
[1642473958154,0.01080005,3218.5,3218.4,0.447]
[1642473964947,0.01080005,3218.5,3217.8,1.84727466]
[1642473964948,0.01080005,3218.5,3217.8,1.43652197]
[1642473965146,0.01080005,3218.5,3217.9,1.6271]
[1642473965345,0.01023162,3218.4,3217.9,1.6271]
[1642473965745,0.0096632,3218.3,3217.9,1.6271]
[1642473966147,0.00909478,3218.2,3217.9,1.6271]
[1642473966350,0.00909478,3218.2,3218.0,1.08952039]
[1642473966598,0.00852635,3218.1,3218.0,1.08952039]
[1642473966800,0.00852635,3218.1,3217.8,0.1242955]
[1642473967197,0.00795793,3218.0,3217.8,0.1242955]
[1642473967501,0.00738951,3217.9,3217.8,9.55e-05]
[1642473968099,0.78591407,3217.9,3217.8,9.55e-05]
[1642473968300,0.78591407,3217.9,3217.8,1.74662117]
[1642473969299,0.78591407,3217.9,3217.8,9.55e-05]
[1642473977501,0.78591407,3217.9,3217.8,0.02735209]
[1642473978947,3.18591407,3217.9,3217.8,0.02735209]
[1642473980352,3.31011407,3217.9,3217.8,0.02735209]
[1642473982696,3.31011407,3217.9,3217.8,1.58167529]
[1642473982896,3.31011407,3217.9,3217.8,1.88167529]
[1642473983697,2.53295247,3217.9,3217.8,1.88167529]
[1642473984098,0.13295247,3217.9,3217.8,1.88167529]
[1642473984701,0.951924,3218.1,3217.8,1.88167529]
[1642473984896,0.951924,3218.1,3217.9,0.3]
[1642473985346,0.1243,3218.2,3217.9,0.3]
[1642473985750,0.00113684,3218.1,3217.9,0.3]
[1642473985951,0.1242,3218.0,3217.8,0.80457279]
[1642473986551,0.1242,3218.0,3217.8,0.02735209]
[1642473986954,0.1242,3218.0,3217.8,1.58171939]
[1642473987352,2.15262406,3218.3,3218.1,0.65184686]
[1642473987555,0.02503,3218.2,3217.9,0.32843596]
[1642473987753,0.02503,3218.2,3217.9,0.02843596]
[1642473987953,0.02503,3218.2,3218.0,1.5544001]
[1642473988153,0.02503,3218.2,3217.9,0.02843596]
[1642473988356,2.02503,3218.3,3217.9,0.02843596]
[1642473988554,1.2297,3218.2,3217.9,0.02843596]
[1642473988752,0.02503,3218.1,3217.9,0.02843596]
[1642473989012,0.02503,3218.1,3217.9,0.80570126]
[1642473989414,0.02503,3218.2,3217.9,0.32843596]
[1642473989614,0.02503,3218.2,3217.9,0.02843596]
[1642473989615,2.41998924,3218.2,3217.9,0.02843596]
[1642473990020,2.41998924,3218.2,3217.9,0.32843596]
[1642473990219,1.74199654,3218.2,3217.9,0.32843596]
[1642473990420,1.74199654,3218.2,3217.9,0.02843596]
[1642473990619,1.74199654,3218.2,3217.9,0.32843596]
[1642473990821,0.09917,3218.2,3217.9,0.02843596]
[1642473991230,0.09917,3218.2,3218.0,1.554306]
[1642473991424,0.09917,3218.2,3217.9,0.02843596]
[1642473991624,0.00113685,3218.3,3217.9,0.02843596]
[1642473992755,0.00113685,3218.3,3217.9,0.00113684]
[1642473994648,1.59411422,3218.2,3217.9,0.00113684]
[1642473995449,1.59525107,3218.3,3217.9,0.00113684]
[1642473996697,0.00113685,3218.3,3217.9,0.00113684]
[1642473997500,1.59525107,3218.3,3217.9,0.00113684]
[1642473998706,0.00113685,3218.3,3217.9,0.00113684]
[1642473998902,0.00113685,3218.3,3217.9,0.12533684]
[1642474000347,1.59411422,3218.2,3217.9,0.12533684]
[1642474000944,1.71831422,3218.2,3217.9,0.12533684]
[1642474001951,1.71831422,3218.2,3217.7,0.02734105]
[1642474001952,5.8,3218.1,3217.7,0.02734105]
[1642474002151,0.1242,3218.0,3217.7,0.02734105]
[1642474002550,0.1242,3218.0,3217.3,0.01578815]
[1642474002950,0.1242,3218.0,3217.4,0.00284212]
[1642474003149,1.59411422,3217.9,3217.4,0.00284212]
[1642474005500,4.28945103,3218.1,3217.4,1.81139123]
[1642474005501,0.85971468,3218.0,3217.4,1.81139123]
[1642474005999,0.85971468,3218.0,3217.5,0.0022737]
[1642474006403,2.4538289,3218.0,3217.5,1.77572006]
[1642474006600,2.4538289,3218.0,3217.5,1.80930884]
[1642474006801,2.4538289,3218.0,3217.6,0.00170527]
[1642474007303,0.85971468,3218.0,3217.6,0.00170527]
[1642474007501,0.85971468,3218.0,3217.7,0.02331605]
[1642474009051,0.85971468,3218.0,3217.8,1.77344636]
[1642474009250,0.85971468,3218.0,3217.8,1.80867224]
[1642474009453,0.85971468,3218.0,3217.8,2.10867224]
[1642474009849,0.85971468,3218.0,3217.8,0.03522588]
[1642474010049,0.85971468,3218.0,3217.9,0.3]
[1642474010250,0.85971468,3218.0,3217.7,2.13043614]
[1642474010453,0.85971468,3218.0,3217.7,0.35698978]
[1642474010652,0.85971468,3218.0,3217.7,0.02331605]
[1642474011604,1.59525107,3218.1,3217.8,1.82953025]
[1642474011605,0.86085153,3218.1,3217.8,1.82953025]
[1642474011802,0.86085153,3218.1,3217.8,1.86200555]
[1642474012000,0.86085153,3218.1,3217.8,2.16200555]
[1642474012402,0.86085153,3218.1,3217.8,2.18530019]
[1642474012605,0.86085153,3218.1,3218.0,1.12223909]
[1642474012805,0.00113685,3218.1,3218.0,1.4561324]
[1642474013004,0.00113685,3218.1,3218.0,1.5803324]
[1642474013904,0.00113685,3218.1,3218.0,2.96003755]
[1642474014107,0.00113685,3218.1,3218.0,4.7895678]
[1642474015945,0.00113685,3218.1,3218.0,2.28762356]
[1642474017450,0.00113685,3218.1,3218.0,2.31087538]
[1642474017649,0.00113685,3218.1,3218.0,2.18667538]
[1642474021402,0.00113685,3218.1,3218.0,2.31087538]
[1642474022404,0.00113685,3218.1,3218.0,2.18667538]
[1642474022604,0.00113685,3218.1,3218.0,2.16342356]
[1642474023751,0.00113685,3218.1,3218.0,5.26342356]
[1642474025452,12.05126473,3218.6,3218.0,6.66204356]
[1642474025657,9.66025157,3218.6,3218.0,6.66683535]
[1642474025856,0.00113684,3218.3,3218.0,6.66683535]
[1642474026606,9.66025157,3218.6,3218.4,1.398599]
[1642474026607,8.06613734,3218.6,3218.4,1.398599]
[1642474026805,0.1242,3218.6,3218.4,1.698599]
[1642474027005,0.1242,3218.8,3218.5,0.03689722]
[1642474027406,0.12704212,3218.8,3218.5,0.03689722]
[1642474028209,0.12704212,3218.8,3218.7,0.6992995]
[1642474028410,0.12704212,3218.8,3218.7,1.03234937]
[1642474029814,0.12704212,3218.8,3218.7,0.33304987]
[1642474030011,0.12704212,3218.8,3218.7,0.3]
[1642474030455,0.12704212,3218.8,3218.5,0.03606437]
[1642474030856,0.00227369,3218.7,3218.5,0.03606437]
[1642474031057,0.00227369,3218.7,3218.4,0.3]
[1642474031257,0.00170527,3218.6,3218.3,0.999306]
[1642474031457,0.00170527,3218.6,3218.4,0.03043424]
[1642474031658,0.00113685,3218.5,3218.3,0.3]
[1642474032659,0.00113685,3218.5,3218.3,0.33540251]
[1642474033060,0.00113685,3218.5,3218.3,3.43540251]
[1642474037513,0.00113685,3218.5,3218.3,3.46239218]
[1642474038151,0.32550945,3218.9,3218.5,0.62045565]
[1642474038350,0.32550945,3218.9,3218.6,0.3]
[1642474038550,0.00170527,3218.8,3218.6,0.33149831]
[1642474038951,0.00113684,3218.7,3218.6,0.33149831]
[1642474041498,0.00113684,3218.7,3218.6,0.3]
[1642474042102,0.00113684,3218.7,3218.4,0.0318963]
[1642474042401,0.00113684,3218.7,3218.6,0.64854819]
[1642474042604,0.00113684,3218.7,3218.6,0.94854819]
[1642474047057,1.59455102,3218.7,3218.6,0.94854819]
[1642474047456,1.6102964,3218.7,3218.6,0.94854819]
[1642474047859,0.9886888,3218.7,3218.6,0.02693259]
[1642474048657,1.73670149,3218.7,3218.6,0.02693259]
[1642474050097,0.74801269,3218.7,3218.6,0.02693259]
[1642474050301,2.71520232,3218.9,3218.7,1.11684581]
[1642474050501,2.71520232,3218.9,3218.8,0.3]
[1642474050904,2.71633917,3218.9,3218.8,0.3]
[1642474052502,2.71633917,3218.9,3218.8,0.34368212]
[1642474052753,2.40551627,3218.9,3218.8,0.04368212]
[1642474053755,2.09469337,3218.9,3218.8,0.04368212]
[1642474054158,1.47304787,3218.9,3218.8,0.04368212]
[1642474054756,1.16222187,3218.9,3218.8,0.04368212]
[1642474054956,1.16222187,3218.9,3218.8,0.08152481]
[1642474055155,1.16222187,3218.9,3218.8,0.38152481]
[1642474055759,0.85139587,3218.9,3218.8,0.34368212]
[1642474055957,0.85139587,3218.9,3218.8,0.04368212]
[1642474056157,1.14862392,3218.9,3218.8,0.34368212]
[1642474056497,1.14862392,3218.9,3218.8,0.04368212]
[1642474056700,0.2983649,3218.9,3218.8,0.04368212]
[1642474056901,7.05877343,3219.1,3218.8,0.04368212]
[1642474057300,25.21877343,3219.1,3218.3,3.2242]
[1642474057505,1.447,3219.0,3218.8,0.04368212]
[1642474057700,0.1242,3218.9,3218.8,0.04368212]
[1642474057900,0.5712,3218.9,3218.8,0.04368212]
[1642474058100,0.5712,3218.9,3218.4,0.00284212]
[1642474058303,18.16,3218.8,3218.4,0.00284212]
[1642474058500,0.5712,3218.7,3218.4,0.00284212]
[1642474058699,1.5712,3218.7,3218.4,0.00284212]
[1642474059300,4.39085147,3218.5,3218.4,0.00284212]
[1642474059500,4.96205147,3218.5,3218.4,0.00284212]
[1642474060107,5.35,3218.4,3218.3,3.4366963]
[1642474060348,5.4742,3218.4,3218.3,3.4366963]
[1642474062153,23.6342,3218.4,3218.3,3.4366963]
[1642474062552,23.74621247,3218.4,3218.3,3.4366963]
[1642474063350,23.62201247,3218.4,3218.3,3.4366963]
[1642474063558,28.38100153,3218.4,3218.3,3.4366963]
[1642474064902,10.22100153,3218.4,3218.3,3.4366963]
[1642474065104,28.38100153,3218.4,3218.3,3.4366963]
[1642474065303,25.19060635,3218.4,3218.3,3.4366963]
[1642474070361,25.93088283,3218.4,3218.3,3.4366963]
[1642474070756,27.06120748,3218.4,3218.3,3.4366963]
[1642474074916,7.77088283,3218.4,3218.3,3.4366963]
[1642474075115,2.42088283,3218.4,3218.3,3.4366963]
[1642474075348,2.42088283,3218.4,3218.3,0.75973878]
[1642474075349,4.52088283,3218.4,3218.3,0.75973878]
[1642474075548,6.59739032,3218.4,3218.3,0.75973878]
[1642474075749,6.59739032,3218.4,3218.3,0.79039305]
[1642474076154,23.18879644,3218.4,3218.3,0.79039305]
[1642474077154,24.75739032,3218.4,3218.3,0.79039305]
[1642474077352,24.75739032,3218.4,3218.3,1.09039305]
[1642474077554,22.68088283,3218.4,3218.3,1.09039305]
[1642474082411,4.52088283,3218.4,3218.3,1.09039305]
[1642474082611,2.42088283,3218.4,3218.3,1.09039305]
[1642474083450,0.85228895,3218.4,3218.3,1.09039305]
[1642474083851,4.05228895,3218.4,3218.3,1.09039305]
[1642474090549,4.05228895,3218.4,3218.3,0.28007553]
[1642474090750,4.05228895,3218.4,3218.3,0.58007553]
[1642474090947,4.05228895,3218.4,3218.3,0.28007553]
[1642474096406,22.21228895,3218.4,3218.3,0.28007553]
[1642474096607,21.47201247,3218.4,3218.3,0.28007553]
[1642474097849,21.77201247,3218.4,3218.3,0.28007553]
[1642474098851,21.47201247,3218.4,3218.3,0.28007553]
[1642474106554,3.31201247,3218.4,3218.3,0.28007553]
[1642474106757,21.47201247,3218.4,3218.3,0.28007553]
[1642474108557,23.54661238,3218.4,3218.3,0.28007553]
[1642474109401,23.54661238,3218.4,3218.3,0.07523167]
[1642474109604,5.38661238,3218.4,3218.3,0.07523167]
[1642474112407,2.18661238,3218.4,3218.3,0.07523167]
[1642474114664,0.72750112,3218.4,3218.3,0.07523167]
[1642474114864,0.72750112,3218.4,3218.3,0.19943167]
[1642474115263,0.72750112,3218.4,3218.3,0.07523167]
[1642474121267,0.72750112,3218.4,3218.3,0.19943167]
[1642474121471,0.72750112,3218.4,3218.3,0.23070417]
[1642474121672,0.72750112,3218.4,3218.3,0.49943167]
[1642474122476,0.61548865,3218.4,3218.3,0.52495082]
[1642474122675,0.61548865,3218.4,3218.3,0.40075082]
[1642474122872,0.61548865,3218.4,3218.3,0.10075082]
[1642474123673,0.73968865,3218.4,3218.3,0.10075082]
[1642474124307,5.13968865,3218.4,3218.3,0.10075082]
[1642474127110,0.73968865,3218.4,3218.3,0.10075082]
[1642474127311,5.53968865,3218.4,3218.3,0.10075082]
[1642474127512,5.53968865,3218.4,3218.3,0.07523167]
[1642474128155,7.93328989,3218.4,3218.3,0.07523167]
[1642474128356,7.93328989,3218.4,3218.3,0.00222875]
[1642474129558,5.53968865,3218.4,3218.3,0.00222875]
[1642474129759,8.73115697,3218.4,3218.3,0.00222875]
[1642474131912,5.53968865,3218.4,3218.3,0.00222875]
[1642474136162,8.73115697,3218.4,3218.3,0.00222875]
[1642474136963,3.93115697,3218.4,3218.3,0.00222875]
[1642474137170,1.30485697,3218.4,3218.3,0.12642875]
[1642474137364,1.30485697,3218.4,3218.3,0.13897681]
[1642474137563,1.30485697,3218.4,3218.3,0.16470734]
[1642474138765,0.01555109,3218.5,3218.3,0.16470734]
[1642474139002,0.01555109,3218.5,3218.4,0.1242]
[1642474141609,2.39777596,3218.5,3218.4,0.1242]
[1642474143256,4.64777596,3218.5,3218.4,0.1242]
[1642474143454,4.64777596,3218.5,3218.4,0.03866013]
[1642474143653,2.38198781,3218.5,3218.4,0.03866013]
[1642474144553,4.1,3218.4,3218.3,0.00222875]
[1642474145556,4.68898843,3218.4,3218.3,0.00222875]
[1642474145758,0.58898843,3218.4,3218.3,0.00222875]
[1642474146156,2.93898843,3218.4,3218.3,0.00222875]
[1642474146805,0.58898843,3218.4,3218.3,0.00222875]
[1642474147508,0.58898843,3218.4,3218.3,0.02971547]
[1642474152562,2.38482561,3218.5,3218.3,0.00222875]
[1642474152765,2.38482561,3218.5,3218.4,0.1242]
[1642474153460,0.00113685,3218.6,3218.4,0.1242]
[1642474153461,1.59087498,3218.6,3218.4,0.1242]
[1642474154910,0.00113685,3218.6,3218.4,0.1242]
[1642474155908,1.59087498,3218.6,3218.4,0.1242]
[1642474157112,0.00113685,3218.6,3218.4,0.1242]
[1642474157513,0.00113685,3218.6,3218.5,0.02269564]
[1642474160462,2.39549678,3218.6,3218.5,0.02269564]
[1642474166462,3.15719801,3218.6,3218.5,0.02269564]
[1642474167664,0.76283808,3218.6,3218.5,0.02269564]
[1642474167864,1.13135183,3218.6,3218.5,0.02269564]
[1642474169609,0.3696506,3218.6,3218.5,0.02269564]
[1642474171214,2.39510436,3218.6,3218.5,0.02269564]
[1642474172014,0.00113685,3218.6,3218.5,0.02269564]
[1642474177314,2.71361811,3218.7,3218.5,0.02269564]
[1642474178515,2.34510436,3218.7,3218.5,0.02269564]
[1642474180364,0.36851375,3218.8,3218.5,0.02269564]
[1642474180561,0.49271375,3218.9,3218.5,0.02269564]
[1642474180959,0.00113685,3218.8,3218.5,0.02269564]
[1642474181459,0.3696506,3218.8,3218.5,0.02269564]
[1642474182268,0.36851375,3218.7,3218.5,0.02269564]
[1642474183666,0.36851375,3218.6,3218.5,0.02269564]
[1642474185613,0.29082775,3218.6,3218.5,0.02269564]
[1642474187617,0.21314175,3218.6,3218.5,0.02269564]
[1642474188687,0.05776915,3218.6,3218.5,0.02269564]
[1642474189592,0.1242,3218.9,3218.5,0.02269564]
[1642474189593,0.1054206,3218.9,3218.6,0.1553726]
[1642474190794,0.1242,3218.9,3218.6,0.1553726]
[1642474190995,0.1242,3218.9,3218.5,0.02440091]
[1642474191394,1.75581676,3219.0,3218.9,0.0311685]
[1642474191813,1.75695361,3219.0,3218.9,0.0311685]
[1642474192413,1.67926771,3219.0,3218.9,0.0311685]
[1642474192813,0.09345095,3219.0,3218.9,0.0311685]
[1642474193613,0.01576505,3219.0,3218.9,0.0311685]
[1642474193813,0.01576505,3219.0,3218.6,0.02856292]
[1642474194418,1.44621401,3219.1,3218.6,0.02856292]
[1642474194615,1.44621401,3219.1,3218.7,0.00170528]
[1642474194816,1.1806,3219.2,3218.7,0.00170528]
[1642474195017,3.17989984,3218.9,3218.7,0.00170528]
[1642474195261,3.10221594,3218.9,3218.7,0.00170528]
[1642474196467,2.86917354,3218.9,3218.7,0.00170528]
[1642474197271,2.86917354,3218.9,3218.7,0.12590528]
[1642474197571,2.63616174,3218.9,3218.8,0.02857632]
[1642474197770,2.63616174,3218.9,3218.8,0.47557632]
[1642474197971,2.63616174,3218.9,3218.8,2.36891392]
[1642474198170,2.40316594,3218.9,3218.8,4.52696093]
[1642474198369,2.40316594,3218.9,3218.8,4.3909852]
[1642474199013,3.9899791,3219.4,3218.8,4.5151852]
[1642474199208,1.2392,3219.6,3218.8,4.5151852]
[1642474199409,1.00790137,3219.6,3218.8,4.5151852]
[1642474199713,0.00113684,3219.5,3218.9,0.0022737]
[1642474200611,0.93136781,3219.6,3219.5,0.1553361]
[1642474201109,0.93136781,3219.6,3219.0,0.1242]
[1642474201314,0.93136781,3219.6,3219.3,0.2329843]
[1642474201916,7.5707,3219.7,3219.3,0.2329843]
[1642474202116,7.4153735,3219.7,3219.3,1.75015328]
[1642474202321,3.6067,3219.7,3219.2,0.3]
[1642474202757,3.6067,3219.7,3219.3,0.00113684]
[1642474202959,3.6067,3219.7,3219.3,1.7312093]
[1642474203163,3.9899791,3220.0,3219.3,0.30113684]
[1642474203566,3.9922528,3219.9,3219.4,1.7542579]
[1642474203763,3.9922528,3219.9,3219.4,1.73659117]
[1642474203963,0.00170527,3219.8,3219.3,0.30113684]
[1642474204162,0.00170527,3219.8,3219.4,1.7373183]
[1642474204364,0.00113685,3219.7,3219.3,0.30113684]
[1642474204563,0.00113685,3219.7,3219.3,1.733062]
[1642474204867,0.00170527,3219.8,3219.3,1.733062]
[1642474205263,0.00113685,3219.7,3219.5,0.01153198]
[1642474205667,3.99282122,3220.0,3219.5,0.01153198]
[1642474206519,3.19125746,3219.6,3219.5,0.01153198]
[1642474207214,3.9899791,3219.9,3219.5,0.01153198]
[1642474207612,0.00170527,3219.8,3219.5,0.01153198]
[1642474208014,0.00113685,3219.7,3219.5,0.01153198]
[1642474208414,3.99282122,3220.0,3219.5,0.01153198]
[1642474209015,3.19125341,3219.6,3219.5,0.01153198]
[1642474214219,4.30810029,3220.0,3219.5,0.01153198]
[1642474215119,3.19129329,3219.6,3219.5,0.01153198]
[1642474215714,0.61460661,3219.8,3219.5,0.01153198]
[1642474215915,0.61460661,3219.8,3219.3,1.01623407]
[1642474215916,3.9899791,3219.7,3219.3,1.01623407]
[1642474216114,0.0129471,3219.6,3219.3,1.01623407]
[1642474216314,0.01465237,3219.6,3219.3,1.04910895]
[1642474216519,0.00113684,3219.5,3219.3,1.04910895]
[1642474216718,1.0,3219.4,3219.3,1.04910895]
[1642474217119,1.0,3219.4,3219.3,1.34910895]
[1642474218763,1.31527907,3219.4,3219.3,1.34910895]
[1642474219163,0.31527907,3219.4,3219.3,1.34910895]
[1642474220166,0.33054629,3219.4,3219.3,1.34910895]
[1642474221167,0.01526722,3219.4,3219.3,1.34910895]
[1642474222416,3.52206384,3219.4,3219.3,1.34910895]
[1642474223218,3.20678477,3219.4,3219.3,1.34910895]
[1642474223417,3.20678477,3219.4,3219.3,1.04910895]
[1642474224017,3.33054629,3219.4,3219.3,1.04910895]
[1642474224417,0.33054629,3219.4,3219.3,1.04910895]
[1642474224819,0.33054629,3219.4,3219.3,1.34910895]
[1642474225260,3.03054629,3219.4,3219.3,1.34910895]
[1642474225861,0.33054629,3219.4,3219.3,1.34910895]
[1642474226966,0.01526722,3219.4,3219.3,1.34910895]
[1642474228068,2.88054629,3219.4,3219.3,1.34910895]
[1642474228272,0.33054629,3219.4,3219.3,1.34910895]
[1642474230215,0.33054629,3219.4,3219.3,3.16005422]
[1642474230415,0.33054629,3219.4,3219.3,3.20430895]
[1642474230820,0.33054629,3219.4,3219.3,1.34910895]
[1642474234963,2.72399611,3219.4,3219.3,1.34910895]
[1642474236814,0.33054629,3219.4,3219.3,1.34910895]
[1642474237011,0.33054629,3219.4,3219.3,3.56134077]
[1642474237613,0.33054629,3219.4,3219.3,1.47330895]
[1642474237812,0.33054629,3219.4,3219.3,1.77330895]
[1642474239413,0.33054629,3219.4,3219.3,4.93886895]
[1642474239616,3.19131838,3219.8,3219.3,4.93886895]
[1642474239617,3.19131838,3219.8,3219.4,4.5]
[1642474239815,3.19131838,3220.0,3219.5,0.5712]
[1642474240015,3.19131838,3220.0,3219.5,2.53340319]
[1642474240016,0.00113685,3219.7,3219.5,2.53340319]
[1642474240255,0.00113685,3219.7,3219.6,4.25284245]
[1642474240457,0.00113685,3219.7,3219.6,5.89914245]
[1642474240858,0.00113685,3219.7,3219.6,1.79754245]
[1642474241055,0.00113685,3219.7,3219.6,1.79674245]
[1642474241458,3.19131838,3220.0,3219.9,1.347033]
[1642474241663,3.98972425,3220.4,3219.9,0.1242]
[1642474241862,3.19131838,3220.6,3219.9,0.1242]
[1642474242263,0.00454739,3220.5,3219.9,0.1242]
[1642474242764,0.00397896,3220.4,3219.9,0.1242]
[1642474242964,3.14529734,3220.6,3219.9,0.4242]
[1642474243363,3.14529734,3220.6,3220.0,0.00227369]
[1642474243565,3.14529734,3220.6,3220.0,0.30227369]
[1642474243868,3.14529734,3220.6,3220.1,0.00170527]
[1642474244108,1.1664,3220.8,3220.1,0.30170527]
[1642474244511,0.00170527,3220.7,3220.2,0.00113684]
[1642474244908,1.1664,3220.8,3220.2,0.00113684]
[1642474244909,0.00113685,3220.6,3220.2,0.00113684]
[1642474245109,0.00113685,3220.6,3219.8,0.00341054]
[1642474245311,0.00113685,3220.6,3219.9,0.1242]
[1642474247012,0.00113685,3220.6,3219.9,1.1323]
[1642474247213,0.00113685,3220.6,3219.9,1.17165885]
[1642474247614,0.00113685,3220.6,3220.1,0.02325589]
[1642474247863,1.24573068,3220.6,3220.1,0.02325589]
[1642474248062,1.24573068,3220.6,3220.2,0.00113684]
[1642474249468,3.638182,3220.6,3220.2,0.30113684]
[1642474249669,3.638182,3220.6,3220.2,0.00113684]
[1642474250170,2.39358817,3220.6,3220.3,0.00829903]
[1642474250671,2.39245132,3220.5,3220.3,0.00829903]
[1642474253419,2.39245132,3220.4,3220.3,0.00829903]
[1642474254021,2.39245132,3220.4,3220.3,3.44047088]
[1642474257067,2.39245132,3220.4,3220.3,5.2573701]
[1642474257468,2.39245132,3220.4,3220.3,3.44047088]
[1642474260313,2.39245132,3220.4,3220.3,3.86467088]
[1642474260712,2.39245132,3220.4,3220.2,0.18323684]
[1642474260914,6.93662401,3220.3,3220.2,0.00113684]
[1642474261311,6.93662401,3220.3,3219.6,0.5304526]
[1642474261312,6.93662401,3220.3,3219.8,0.00341054]
[1642474261512,6.93662401,3220.3,3219.7,0.00397896]
[1642474261714,1.13662401,3220.3,3219.8,0.00341054]
[1642474261914,1.13662401,3220.3,3219.7,1.23992189]
[1642474262215,1.13662401,3220.3,3219.8,0.00341054]
[1642474262614,0.13292197,3220.2,3219.8,0.00341054]
[1642474262859,2.39245132,3219.9,3219.8,0.00341054]
[1642474263661,3.32304818,3220.2,3219.8,0.00341054]
[1642474263662,2.39245132,3220.0,3219.8,0.00341054]
[1642474264060,2.39245132,3220.0,3219.8,0.30341054]
[1642474264462,2.39245132,3220.0,3219.9,0.00284211]
[1642474264660,2.51665132,3220.0,3219.9,0.00284211]
[1642474264871,0.13292197,3220.2,3219.8,3.13697012]
[1642474264872,0.1242,3220.1,3219.8,3.13697012]
[1642474265067,0.1242,3220.1,3219.8,3.43697012]
[1642474265266,0.1242,3220.1,3219.9,0.00284211]
[1642474265671,5.8,3220.0,3219.8,0.03981223]
[1642474265870,0.1242,3219.9,3218.7,0.5]
[1642474266071,1.0,3219.8,3218.7,0.5]
[1642474266271,0.1242,3219.7,3218.8,0.00625266]
[1642474266714,1.11107508,3219.3,3218.8,0.00625266]
[1642474266914,0.1242,3219.2,3218.8,0.00625266]
[1642474267314,3.9068,3219.7,3218.8,0.00625266]
[1642474267714,4.03972197,3219.7,3218.8,0.00625266]
[1642474267916,6.16235022,3219.7,3218.8,0.00625266]
[1642474268315,6.16235022,3219.7,3218.7,0.00682109]
[1642474268516,5.33421287,3219.7,3218.7,0.00682109]
[1642474269115,0.13292197,3219.6,3218.7,0.00682109]
[1642474269317,0.1242,3219.5,3218.7,0.00682109]